bitfinex/quotes_BTCUSD_20250803
["timestamp","ask_amount","ask_price","bid_price","bid_amount"]
[1754245967007,3.26139921,114520.0,114510.0,0.08786]
[1754245967008,3.43453677,114520.0,114510.0,0.08786]
[1754245967229,3.42086122,114520.0,114510.0,0.08786]
[1754245967449,3.42186122,114520.0,114510.0,0.09008444]
[1754245967671,3.27499666,114520.0,114510.0,0.09008444]
[1754245968081,3.27497578,114520.0,114510.0,0.09008444]
[1754245968290,3.27497578,114520.0,114510.0,0.09208444]
[1754245968523,3.28377033,114520.0,114510.0,0.09208444]
[1754245970466,3.29744612,114520.0,114510.0,0.09208444]
[1754245970824,3.38628368,114520.0,114510.0,0.09208444]
[1754245976858,3.47058368,114520.0,114510.0,0.09208444]
[1754245978942,3.14864538,114520.0,114510.0,0.09208444]
[1754245979150,3.14864612,114520.0,114510.0,0.09208444]
[1754245979327,3.13497033,114520.0,114510.0,0.09208444]
[1754245979530,3.1349556,114520.0,114510.0,0.09208444]
[1754245982141,1.70541211,114520.0,114510.0,0.09528444]
[1754245982356,1.83885211,114520.0,114510.0,0.10481688]
[1754245982566,1.83897211,114520.0,114510.0,0.10481688]
[1754245982767,1.70541211,114520.0,114510.0,0.09528444]
[1754245982988,1.33913911,114520.0,114510.0,0.12130696]
[1754245983213,1.33913911,114520.0,114510.0,0.19201894]
[1754245983446,1.67098751,114520.0,114510.0,0.19099642]
[1754245983782,1.32998751,114520.0,114510.0,0.27010977]
[1754245983862,1.32998751,114520.0,114510.0,0.86918429]
[1754245983863,1.3150508,114520.0,114510.0,0.86918429]
[1754245984092,1.3160508,114520.0,114510.0,0.86718429]
[1754245984319,1.66209905,114520.0,114510.0,0.86718429]
[1754245984538,1.30067169,114520.0,114510.0,0.87418429]
[1754245984763,1.64067169,114520.0,114510.0,0.87418429]
[1754245985042,1.64067169,114520.0,114510.0,0.12528444]
[1754245985707,1.626996,114520.0,114510.0,0.12528444]
[1754245987775,1.626996,114520.0,114510.0,0.25900444]
[1754245988196,1.63593353,114520.0,114510.0,0.25900444]
[1754245989345,1.63353353,114520.0,114510.0,0.25900444]
[1754245989564,1.63353353,114520.0,114510.0,0.34481634]
[1754245990216,1.64720712,114520.0,114510.0,0.34481634]
[1754245992241,1.64720712,114520.0,114510.0,0.25900444]
[1754245999365,1.63353353,114520.0,114510.0,0.25900444]
[1754246002161,1.41857514,114520.0,114510.0,0.25900444]
[1754246005880,1.40490153,114520.0,114510.0,0.25900444]
[1754246006073,1.40466519,114520.0,114510.0,0.25900444]
[1754246006306,1.40466519,114520.0,114510.0,0.347842]
[1754246008088,2.09584971,114520.0,114510.0,0.255082]
[1754246008927,2.10952349,114520.0,114510.0,0.255082]
[1754246009149,2.10952349,114520.0,114510.0,0.16624444]
[1754246009379,2.12589463,114520.0,114510.0,0.16624444]
[1754246009799,2.10952349,114520.0,114510.0,0.16624444]
[1754246010905,2.1258956,114520.0,114510.0,0.16624444]
[1754246011540,2.13203955,114520.0,114510.0,0.16624444]
[1754246012485,2.14023652,114520.0,114510.0,0.16624444]
[1754246013349,2.1258956,114520.0,114510.0,0.16624444]
[1754246013548,2.14026697,114520.0,114510.0,0.16624444]
[1754246013885,2.14026594,114520.0,114510.0,0.16624444]
[1754246014088,1.54119142,114520.0,114510.0,0.16624444]
[1754246014304,2.13206768,114520.0,114510.0,0.16624444]
[1754246015202,2.14026607,114520.0,114510.0,0.16624444]
[1754246015446,2.13206768,114520.0,114510.0,0.16624444]
[1754246016105,2.13206768,114520.0,114510.0,0.14124444]
[1754246016325,2.14026574,114520.0,114510.0,0.14124444]
[1754246016549,2.12659196,114520.0,114510.0,0.14124444]
[1754246018130,2.25999196,114520.0,114510.0,0.14124444]
[1754246019333,2.25998276,114520.0,114510.0,0.14124444]
[1754246019744,2.25998276,114520.0,114510.0,0.00752444]
[1754246020700,2.27365748,114520.0,114510.0,0.00752444]
[1754246022780,1.67458296,114520.0,114510.0,0.00752444]
[1754246022985,2.27365748,114520.0,114510.0,0.00752444]
[1754246025204,2.2736523,114520.0,114510.0,0.00752444]
[1754246026594,1.19941412,114520.0,114510.0,0.00752444]
[1754246026814,1.93188864,114520.0,114510.0,0.00752444]
[1754246027485,1.92369834,114520.0,114510.0,0.00752444]
[1754246028143,1.92368548,114520.0,114510.0,0.00752444]
[1754246028685,2.26368548,114520.0,114510.0,0.00752444]
[1754246029362,2.25001076,114520.0,114510.0,0.00752444]
[1754246031857,2.25820074,114520.0,114510.0,0.00752444]
[1754246032270,2.27187542,114520.0,114510.0,0.00752444]
[1754246033653,2.87094994,114520.0,114510.0,0.00752444]
[1754246033838,2.27187542,114520.0,114510.0,0.00752444]
[1754246034043,2.87094994,114520.0,114510.0,0.00752444]
[1754246035681,2.85727526,114520.0,114510.0,0.00752444]
[1754246036700,3.00774869,114520.0,114510.0,0.00752444]
[1754246037322,3.0327352,114520.0,114510.0,0.00752444]
[1754246038349,3.0327352,114520.0,114510.0,0.00052444]
[1754246038600,3.0337352,114520.0,114510.0,0.00352444]
[1754246038812,3.0337352,114520.0,114510.0,0.00652444]
[1754246038813,2.88399324,114520.0,114510.0,0.00652444]
[1754246040113,2.29822737,114520.0,114510.0,0.00652444]
[1754246040410,2.27324086,114520.0,114510.0,0.00652444]
[1754246041503,2.27324957,114520.0,114510.0,0.00652444]
[1754246042215,2.27324957,114520.0,114510.0,0.08515444]
[1754246042445,2.03390904,114520.0,114510.0,0.00652444]
[1754246042678,1.90050904,114520.0,114510.0,0.00652444]
[1754246042887,2.03390904,114520.0,114510.0,0.00652444]
[1754246044020,2.04256199,114520.0,114510.0,0.00652444]
[1754246044464,2.04257686,114520.0,114510.0,0.00652444]
[1754246052596,2.02890163,114520.0,114510.0,0.00652444]
[1754246053031,2.02890375,114520.0,114510.0,0.00652444]
[1754246053446,2.02890809,114520.0,114510.0,0.00652444]
[1754246053575,2.62834919,114520.0,114510.0,0.00652444]
[1754246055268,2.64202425,114520.0,114510.0,0.00652444]
[1754246057192,2.64022425,114520.0,114510.0,0.00652444]
[1754246057838,2.64022619,114520.0,114510.0,0.00652444]
[1754246058740,2.78997385,114520.0,114510.0,0.00652444]
[1754246058952,2.77357652,114520.0,114510.0,0.00652444]
[1754246059166,2.78997468,114520.0,114510.0,0.00652444]
[1754246063039,2.81496119,114520.0,114510.0,0.00652444]
[1754246063249,2.84123119,114520.0,114510.0,0.00652444]
[1754246064069,2.82755613,114520.0,114510.0,0.00652444]
[1754246064487,2.62265769,114520.0,114510.0,0.00652444]
[1754246064688,2.62461769,114520.0,114510.0,0.00652444]
[1754246066571,2.68454769,114520.0,114510.0,0.00652444]
[1754246066982,2.69822343,114520.0,114510.0,0.00652444]
[1754246067742,2.71712317,114520.0,114510.0,0.00652444]
[1754246069329,2.69822702,114520.0,114510.0,0.00652444]
[1754246070974,3.37254195,114520.0,114510.0,0.00652444]
[1754246071122,3.39142991,114520.0,114510.0,0.00652444]
[1754246071554,2.71711498,114520.0,114510.0,0.00652444]
[1754246073486,2.71710853,114520.0,114510.0,0.00652444]
[1754246074841,2.80594609,114520.0,114510.0,0.00652444]
[1754246076438,2.71709392,114520.0,114510.0,0.00652444]
[1754246077379,2.70341818,114520.0,114510.0,0.00652444]
[1754246078996,3.41884231,114520.0,114510.0,0.00652444]
[1754246079217,3.41884147,114520.0,114510.0,0.00652444]
[1754246080303,3.41884147,114520.0,114510.0,0.00352444]
[1754246080562,3.41884147,114520.0,114500.0,4e-05]
[1754246080563,1.18101002,114510.0,114500.0,4e-05]
[1754246080788,3.43691678,114510.0,114500.0,0.0001644]
[1754246081006,3.52300696,114510.0,114480.0,0.08447]
[1754246081213,2.51219086,114490.0,114480.0,0.00014238]
[1754246081432,2.67824836,114490.0,114480.0,0.00014238]
[1754246081654,2.71690091,114490.0,114480.0,0.00014238]
[1754246081861,2.77476091,114490.0,114480.0,0.00014238]
[1754246082280,2.80104091,114490.0,114480.0,0.00014238]
[1754246082704,2.65222883,114490.0,114480.0,0.00014238]
[1754246083838,2.65322883,114490.0,114480.0,0.00114238]
[1754246084687,2.74206639,114490.0,114480.0,0.00114238]
[1754246085106,2.65322883,114490.0,114480.0,0.00114238]
[1754246085646,2.59536883,114490.0,114480.0,0.08206238]
[1754246086107,2.59536883,114490.0,114480.0,0.08714238]
[1754246086821,2.59536883,114490.0,114480.0,0.08914238]
[1754246088559,2.57039602,114490.0,114480.0,0.08914238]
[1754246089244,2.55671628,114490.0,114480.0,0.08914238]
[1754246089469,2.55555895,114490.0,114480.0,0.08914238]
[1754246091878,2.58053176,114490.0,114480.0,0.08914238]
[1754246092131,2.59421111,114490.0,114480.0,0.08914238]
[1754246093656,2.59419423,114490.0,114480.0,0.08914238]
[1754246094027,2.56922142,114490.0,114480.0,0.08914238]
[1754246095293,2.56922142,114490.0,114480.0,0.08406238]
[1754246096013,2.65465423,114490.0,114480.0,0.00314238]
[1754246096874,2.70092223,114490.0,114480.0,0.00314238]
[1754246097557,2.72592223,114490.0,114480.0,0.00314238]
[1754246098015,2.72492223,114490.0,114480.0,0.00214238]
[1754246098309,3.69951886,114490.0,114480.0,0.00014238]
[1754246098757,0.04244902,114480.0,114470.0,0.95614238]
[1754246098993,3.39131574,114480.0,114470.0,0.95614238]
[1754246099262,3.29974845,114480.0,114470.0,0.95614238]
[1754246099700,3.29971963,114480.0,114470.0,0.95614238]
[1754246099983,3.31340217,114480.0,114470.0,0.95614238]
[1754246100151,3.30071963,114480.0,114470.0,0.95714238]
[1754246100364,3.42682114,114480.0,114470.0,0.95714238]
[1754246100728,3.40182114,114480.0,114470.0,0.95714238]
[1754246100931,3.33798358,114480.0,114470.0,0.95714238]
[1754246101113,3.31440217,114480.0,114470.0,0.95714238]
[1754246102165,3.31540217,114480.0,114470.0,0.95714238]
[1754246102374,3.31440217,114480.0,114470.0,0.95614238]
[1754246102627,3.31540217,114480.0,114470.0,0.95614238]
[1754246102837,3.40423973,114480.0,114470.0,0.95614238]
[1754246105171,3.42782114,114480.0,114470.0,0.95614238]
[1754246105583,3.60252414,114480.0,114470.0,0.30475846]
[1754246105794,3.60252414,114480.0,114470.0,0.26075846]
[1754246106059,3.5888416,114480.0,114470.0,0.26075846]
[1754246106897,2.58837878,114470.0,114460.0,0.0004]
[1754246107258,3.33322267,114470.0,114460.0,0.0004]
[1754246107499,3.35951367,114470.0,114460.0,0.0004]
[1754246107694,3.38309508,114470.0,114460.0,0.0004]
[1754246108133,2.43701177,114460.0,114450.0,0.0004]
[1754246108366,2.68091172,114460.0,114450.0,0.0004]
[1754246108566,2.76974928,114460.0,114450.0,0.0004]
[1754246108981,2.78343528,114460.0,114450.0,0.0004]
[1754246109824,2.78543528,114460.0,114450.0,0.0004]
[1754246110731,2.81172728,114460.0,114450.0,0.0004]
[1754246111167,2.81372728,114460.0,114450.0,0.0004]
[1754246113822,2.81372728,114460.0,114450.0,0.0003161]
[1754246113823,2.12498083,114460.0,114450.0,0.0003161]
[1754246115814,2.13487624,114460.0,114450.0,0.0003161]
[1754246117154,2.74260384,114460.0,114450.0,0.0003161]
[1754246117648,2.93478639,114460.0,114450.0,0.0003161]
[1754246118073,2.38837878,114450.0,114440.0,0.0664461]
[1754246118355,3.14608721,114450.0,114440.0,0.0664461]
[1754246118598,0.35744902,114430.0,114420.0,0.07374198]
[1754246118818,1.97191362,114430.0,114420.0,0.07278198]
[1754246119040,1.99688643,114430.0,114420.0,0.07278198]
[1754246119278,2.02188643,114430.0,114420.0,0.00047498]
[1754246119503,0.34,114400.0,114380.0,0.07173915]
[1754246119693,1.17290281,114390.0,114380.0,0.07085444]
[1754246119948,1.32888973,114390.0,114380.0,0.07292444]
[1754246120177,1.32888973,114390.0,114380.0,0.15765444]
[1754246120405,1.32888973,114390.0,114380.0,0.246492]
[1754246121087,1.32988973,114390.0,114380.0,0.246492]
[1754246121346,1.32988973,114390.0,114380.0,0.15765444]
[1754246121569,1.32888973,114390.0,114380.0,0.16068444]
[1754246121799,1.32888973,114390.0,114380.0,0.16768444]
[1754246122018,1.35439796,114390.0,114380.0,0.16068444]
[1754246122235,1.35539796,114390.0,114380.0,0.16768444]
[1754246122439,1.35439796,114390.0,114380.0,0.16068444]
[1754246122626,1.35439796,114390.0,114380.0,0.20142148]
[1754246122874,1.35539796,114390.0,114380.0,0.20642148]
[1754246123103,1.37058299,114390.0,114380.0,0.09497246]
[1754246123333,1.24526787,114390.0,114380.0,0.09497246]
[1754246123564,1.34555476,114390.0,114380.0,0.09497246]
[1754246124041,1.21203476,114390.0,114380.0,0.09497246]
[1754246124293,0.84650792,114390.0,114380.0,0.85545962]
[1754246124515,0.01832843,114390.0,114380.0,0.98799089]
[1754246124738,0.01832843,114390.0,114380.0,0.388082]
[1754246124962,0.01832843,114390.0,114380.0,0.31737002]
[1754246125188,0.01732843,114390.0,114380.0,0.22353246]
[1754246125409,0.01732843,114390.0,114380.0,0.82344135]
[1754246125641,0.84545564,114390.0,114380.0,0.22373246]
[1754246125858,0.84645564,114390.0,114380.0,0.23073246]
[1754246126376,0.84545564,114390.0,114380.0,0.31257002]
[1754246126604,0.84645564,114390.0,114380.0,0.32357002]
[1754246127092,0.84645564,114390.0,114380.0,0.18981002]
[1754246127759,0.84645564,114390.0,114380.0,0.78971891]
[1754246127991,0.84645564,114390.0,114380.0,0.18981002]
[1754246128183,0.85598852,114390.0,114380.0,0.18981002]
[1754246128432,0.85598852,114390.0,114380.0,0.78971891]
[1754246128890,0.02345464,114390.0,114380.0,0.78971891]
[1754246129183,0.02345464,114390.0,114380.0,0.19081002]
[1754246129403,0.02345464,114390.0,114380.0,0.23625246]
[1754246129653,0.02345464,114390.0,114380.0,0.83616135]
[1754246129893,0.02345464,114390.0,114380.0,0.23525246]
[1754246130130,0.02445464,114390.0,114380.0,0.83816135]
[1754246130995,0.02345464,114390.0,114380.0,0.82716135]
[1754246131201,0.02345464,114390.0,114380.0,0.91599891]
[1754246131895,0.03714284,114390.0,114380.0,0.92099891]
[1754246132119,0.822001,114410.0,114380.0,0.92099891]
[1754246132321,0.84483995,114400.0,114390.0,0.60093714]
[1754246132531,0.84483995,114400.0,114390.0,0.68973889]
[1754246132756,0.84483995,114400.0,114390.0,0.77857645]
[1754246132962,0.86078455,114400.0,114390.0,0.77857645]
[1754246133391,0.86078455,114400.0,114390.0,0.78257645]
[1754246133607,0.86996828,114400.0,114390.0,0.78257645]
[1754246134048,0.86996828,114400.0,114390.0,0.18266756]
[1754246134469,0.86997038,114400.0,114390.0,0.18266756]
[1754246135125,0.87097038,114400.0,114390.0,0.18866756]
[1754246135341,0.86278455,114400.0,114390.0,0.18866756]
[1754246135576,0.87097349,114400.0,114390.0,0.18866756]
[1754246136032,0.87097389,114400.0,114390.0,0.18866756]
[1754246136269,1.21097389,114400.0,114390.0,0.18866756]
[1754246136832,1.21097389,114400.0,114390.0,0.78857645]
[1754246138969,1.21097973,114400.0,114390.0,0.78857645]
[1754246139211,1.21097973,114400.0,114390.0,0.18866756]
[1754246139661,1.21097973,114400.0,114390.0,0.09983]
[1754246139881,1.19729154,114400.0,114390.0,0.10085825]
[1754246142351,1.18909636,114400.0,114390.0,0.10085825]
[1754246142791,1.20278433,114400.0,114390.0,0.10085825]
[1754246144095,1.20893225,114400.0,114390.0,0.09782825]
[1754246144435,1.20893225,114400.0,114390.0,0.18563756]
[1754246144526,1.20893233,114400.0,114390.0,0.18666581]
[1754246144769,1.21415233,114400.0,114390.0,0.18563756]
[1754246144994,1.92297397,114400.0,114390.0,0.22901]
[1754246146140,1.92297397,114400.0,114390.0,0.14428]
[1754246146368,1.9065788,114400.0,114390.0,0.14428]
[1754246146830,1.9065788,114400.0,114390.0,0.22899]
[1754246147056,1.89289083,114400.0,114390.0,0.22899]
[1754246147287,1.89289083,114400.0,114390.0,0.26353521]
[1754246147518,1.80857083,114400.0,114390.0,0.26353521]
[1754246148883,1.80857129,114400.0,114390.0,0.26353521]
[1754246149790,1.2086624,114400.0,114390.0,0.26353521]
[1754246150037,1.19524482,114400.0,114390.0,0.26868521]
[1754246150263,1.19524435,114400.0,114390.0,0.26868521]
[1754246151600,1.20893248,114400.0,114390.0,0.26868521]
[1754246153861,1.18383712,114400.0,114390.0,0.8685941]
[1754246154345,1.17768913,114400.0,114390.0,0.8685941]
[1754246154567,1.18290913,114400.0,114390.0,0.26555521]
[1754246155914,1.17768913,114400.0,114390.0,0.26555521]
[1754246156137,1.17768913,114400.0,114390.0,0.26868521]
[1754246156597,1.17768913,114400.0,114390.0,0.8685941]
[1754246156814,0.35568813,114400.0,114390.0,0.8685941]
[1754246157744,0.342,114400.0,114390.0,0.97467596]
[1754246158600,0.341,114400.0,114390.0,0.97067596]
[1754246158818,0.34,114400.0,114390.0,0.96467596]
[1754246159044,0.341,114400.0,114390.0,0.96967596]
[1754246159288,0.342,114400.0,114390.0,0.97867596]
[1754246160691,0.002,114400.0,114390.0,0.97867596]
[1754246160946,0.002,114400.0,114390.0,0.37876707]
[1754246161171,0.002,114400.0,114390.0,0.97867596]
[1754246164773,0.01568668,114400.0,114390.0,0.97867596]
[1754246165009,0.01568668,114400.0,114390.0,1.24187596]
[1754246165453,0.02090668,114400.0,114390.0,0.53279521]
[1754246165674,0.02090668,114400.0,114390.0,0.39847521]
[1754246165896,0.00722,114400.0,114390.0,0.53279521]
[1754246166117,0.002,114400.0,114390.0,0.53279521]
[1754246167472,0.002,114400.0,114390.0,1.1358341]
[1754246170580,0.002,114400.0,114390.0,1.15328312]
[1754246170805,0.002,114400.0,114390.0,0.55337423]
[1754246173560,0.002,114400.0,114390.0,1.15328312]
[1754246175797,0.002,114400.0,114390.0,1.15015312]
[1754246176237,0.00713,114400.0,114390.0,0.53279521]
[1754246176687,0.00713,114400.0,114390.0,0.26959521]
[1754246178771,0.822001,114410.0,114390.0,0.27260521]
[1754246178991,0.822001,114410.0,114400.0,0.08447]
[1754246179188,0.00201,114410.0,114400.0,0.11170652]
[1754246180297,0.00301,114410.0,114400.0,0.11570652]
[1754246180718,0.00613,114410.0,114400.0,0.11570652]
[1754246180897,0.00513,114410.0,114400.0,0.11570652]
[1754246181312,0.00613,114410.0,114400.0,0.11970652]
[1754246181511,0.02888995,114410.0,114400.0,0.12576428]
[1754246182048,0.001,114410.0,114400.0,0.12576428]
[1754246182253,0.00301,114410.0,114400.0,0.12172652]
[1754246182462,0.00301,114410.0,114400.0,0.12275428]
[1754246183176,0.00301,114410.0,114400.0,0.12172652]
[1754246185477,0.60603889,114410.0,114400.0,0.11970652]
[1754246185692,0.00613,114410.0,114400.0,0.11970652]
[1754246186132,0.00301,114410.0,114400.0,0.12073428]
[1754246186359,0.03213716,114410.0,114400.0,0.12073428]
[1754246186592,0.03213716,114410.0,114400.0,0.11970652]
[1754246188098,0.60302889,114420.0,114400.0,0.11970652]
[1754246188311,1.44797071,114420.0,114410.0,0.13404]
[1754246188483,1.44946071,114420.0,114410.0,0.15941465]
[1754246189451,1.44946071,114420.0,114410.0,0.16241465]
[1754246190017,1.44946071,114420.0,114410.0,0.24688465]
[1754246190768,1.45046071,114420.0,114410.0,0.24688465]
[1754246190981,1.81898703,114420.0,114410.0,0.24688465]
[1754246191413,1.81798703,114420.0,114410.0,0.11284465]
[1754246191628,1.81798703,114420.0,114410.0,0.13696]
[1754246192057,1.81898703,114420.0,114410.0,0.14096]
[1754246192317,1.81898713,114420.0,114410.0,0.14096]
[1754246192542,1.81898726,114420.0,114410.0,0.14096]
[1754246193617,1.81898726,114420.0,114410.0,0.007]
[1754246194501,1.83540404,114420.0,114410.0,0.007]
[1754246198262,1.83539822,114420.0,114410.0,0.007]
[1754246199470,1.86169222,114420.0,114410.0,0.007]
[1754246200685,1.83617822,114420.0,114410.0,0.007]
[1754246200892,1.36656933,114420.0,114410.0,0.007]
[1754246201238,1.23086326,114420.0,114410.0,0.09743]
[1754246201360,1.3405361,114420.0,114410.0,0.107173]
[1754246202024,1.33438503,114420.0,114410.0,0.107173]
[1754246203275,1.20010503,114420.0,114410.0,0.107173]
[1754246203891,1.80001392,114420.0,114410.0,0.107173]
[1754246204522,1.8137004,114420.0,114410.0,0.107173]
[1754246204733,1.21379151,114420.0,114410.0,0.107173]
[1754246207070,1.8137004,114420.0,114410.0,0.107173]
[1754246210004,1.81985091,114420.0,114410.0,0.107173]
[1754246211196,1.95405091,114420.0,114410.0,0.107173]
[1754246212446,1.95603091,114420.0,114410.0,0.107173]
[1754246215355,1.97243179,114420.0,114410.0,0.107173]
[1754246215785,1.97506179,114420.0,114410.0,0.016743]
[1754246216338,1.76405408,114420.0,114410.0,0.016743]
[1754246216658,1.7722548,114420.0,114410.0,0.016743]
[1754246217078,1.7696248,114420.0,114410.0,0.09235]
[1754246217939,1.7722548,114420.0,114410.0,0.007]
[1754246218561,1.7696248,114420.0,114410.0,0.09235]
[1754246219334,1.75593832,114420.0,114410.0,0.09235]
[1754246221970,1.75856832,114420.0,114410.0,0.007]
[1754246222225,1.77225529,114420.0,114410.0,0.007]
[1754246222436,1.63805529,114420.0,114410.0,0.007]
[1754246222642,1.76744529,114420.0,114410.0,0.09743]
[1754246222852,1.75924457,114420.0,114410.0,0.10727574]
[1754246223255,0.68533568,114420.0,114410.0,0.10727574]
[1754246223454,1.15314517,114420.0,114410.0,0.10727574]
[1754246223829,1.01918517,114420.0,114410.0,0.10727574]
[1754246224055,1.00278429,114420.0,114410.0,0.10727574]
[1754246224259,0.66278429,114420.0,114410.0,0.10727574]
[1754246224439,0.01468697,114420.0,114410.0,0.92934563]
[1754246224851,0.01468697,114420.0,114410.0,0.95562963]
[1754246225778,0.01468697,114420.0,114410.0,0.88191765]
[1754246226015,0.01468697,114420.0,114410.0,0.28200876]
[1754246226232,0.01368697,114420.0,114410.0,0.28400876]
[1754246227125,0.01368697,114420.0,114410.0,0.26655974]
[1754246227862,0.97599464,114430.0,114410.0,0.26655974]
[1754246228122,0.97599464,114430.0,114420.0,0.00102701]
[1754246228542,0.97599464,114430.0,114420.0,0.09145701]
[1754246228801,0.37608575,114430.0,114420.0,0.11861569]
[1754246229291,0.37608575,114430.0,114420.0,0.11961569]
[1754246229527,0.37608575,114430.0,114420.0,0.11975815]
[1754246231071,0.37608575,114430.0,114420.0,0.09836815]
[1754246233115,0.37608575,114430.0,114420.0,0.10152815]
[1754246233325,0.37608575,114430.0,114420.0,0.10452815]
[1754246233546,0.37820575,114430.0,114420.0,0.10452815]
[1754246233755,0.97811464,114430.0,114420.0,0.10452815]
[1754246235681,0.37820575,114430.0,114420.0,0.10452815]
[1754246235960,0.97811464,114430.0,114420.0,0.10452815]
[1754246244432,0.97599464,114430.0,114420.0,0.10452815]
[1754246244662,0.37608575,114430.0,114420.0,0.10452815]
[1754246245874,0.029424,114450.0,114420.0,0.10452815]
[1754246246125,0.619571,114440.0,114430.0,0.21811]
[1754246246324,0.619571,114440.0,114430.0,0.24539511]
[1754246246549,0.60304889,114450.0,114430.0,0.24539511]
[1754246246878,0.35368333,114440.0,114430.0,0.16420511]
[1754246247596,0.35368333,114440.0,114430.0,0.24539511]
[1754246248013,0.35368333,114440.0,114430.0,0.24639511]
[1754246248281,0.35368333,114440.0,114430.0,0.24739511]
[1754246249497,0.35368333,114440.0,114430.0,0.24639511]
[1754246249680,0.38996282,114440.0,114430.0,0.24839511]
[1754246251953,0.98987171,114440.0,114430.0,0.24839511]
[1754246252167,0.99199171,114440.0,114430.0,0.24839511]
[1754246254225,0.99199171,114440.0,114430.0,0.24839511]
[1754246255605,0.39208282,114440.0,114430.0,0.24839511]
[1754246256269,0.39208282,114440.0,114430.0,0.24523511]
[1754246256872,0.99199171,114440.0,114430.0,0.24523511]
[1754246259161,0.99513171,114440.0,114430.0,0.24310511]
[1754246261396,0.99513171,114440.0,114430.0,0.23287111]
[1754246266047,0.39522282,114440.0,114430.0,0.23287111]
[1754246266258,0.99513171,114440.0,114430.0,0.23287111]
[1754246274836,1.07030688,114440.0,114430.0,0.23287111]
[1754246281146,1.07030688,114440.0,114430.0,0.23282534]
[1754246281660,1.05662355,114440.0,114430.0,0.23282534]
[1754246282169,1.05348355,114440.0,114430.0,0.23495534]
[1754246282808,0.71348355,114440.0,114430.0,0.23495534]
[1754246284276,0.7271667,114440.0,114430.0,0.23495534]
[1754246286867,0.7303667,114440.0,114430.0,0.23495534]
[1754246287541,0.71668355,114440.0,114430.0,0.23495534]
[1754246291277,0.71668355,114440.0,114430.0,0.23282534]
[1754246291880,0.73036679,114440.0,114430.0,0.23282534]
[1754246292497,0.73036679,114440.0,114430.0,0.003]
[1754246292498,1.34993779,114440.0,114430.0,0.003]
[1754246292708,1.50915779,114440.0,114430.0,0.13664]
[1754246292913,1.52557527,114440.0,114430.0,0.13664]
[1754246293636,1.5317315,114440.0,114430.0,0.13664]
[1754246294741,1.5317315,114440.0,114430.0,0.003]
[1754246296742,1.51804826,114440.0,114430.0,0.003]
[1754246298035,1.85804826,114440.0,114430.0,0.003]
[1754246299085,1.60687077,114440.0,114430.0,0.003]
[1754246299318,1.57512749,114440.0,114430.0,0.003]
[1754246299520,1.58881124,114440.0,114430.0,0.08938]
[1754246299788,1.58881124,114440.0,114430.0,0.11472211]
[1754246300483,1.59496498,114440.0,114430.0,0.11472211]
[1754246302452,1.58881124,114440.0,114430.0,0.11472211]
[1754246302750,1.62462252,114440.0,114430.0,0.11472211]
[1754246304116,1.62462252,114440.0,114430.0,0.02834211]
[1754246305012,2.29970658,114440.0,114430.0,0.02834211]
[1754246305234,2.38807112,114440.0,114430.0,0.003]
[1754246305460,2.39069794,114440.0,114430.0,0.003]
[1754246305901,2.37701419,114440.0,114430.0,0.003]
[1754246306368,2.3524976,114440.0,114430.0,0.003]
[1754246306584,2.2186076,114440.0,114430.0,0.002]
[1754246306793,2.3522476,114440.0,114430.0,0.002]
[1754246307646,0.749583,114430.0,114420.0,0.08962246]
[1754246307859,2.23339112,114430.0,114420.0,0.11505328]
[1754246308836,2.23339112,114430.0,114420.0,0.11705328]
[1754246309719,2.23339112,114430.0,114420.0,0.11805328]
[1754246310074,2.24707593,114430.0,114420.0,0.11805328]
[1754246310528,2.24748593,114430.0,114420.0,0.11805328]
[1754246315862,2.23380112,114430.0,114420.0,0.11805328]
[1754246316348,2.23380112,114430.0,114420.0,0.02645328]
[1754246316566,2.25942112,114430.0,114420.0,0.00314246]
[1754246317996,2.25942112,114430.0,114420.0,0.00014246]
[1754246318425,2.25942112,114430.0,114420.0,0.00114246]
[1754246320451,2.27310646,114430.0,114420.0,0.00114246]
[1754246322178,2.24748646,114430.0,114420.0,0.00114246]
[1754246322973,1.90748646,114430.0,114420.0,0.00114246]
[1754246323184,2.63203711,114430.0,114400.0,0.00304]
[1754246323395,1.08466706,114410.0,114400.0,0.00304]
[1754246323602,1.21826706,114410.0,114400.0,0.00505]
[1754246324015,1.23195331,114410.0,114400.0,0.00505]
[1754246324894,1.23195331,114410.0,114400.0,0.00605]
[1754246325280,1.23195331,114410.0,114400.0,0.09218]
[1754246325510,1.57195331,114410.0,114400.0,0.09218]
[1754246325898,1.57195331,114410.0,114400.0,0.101398]
[1754246326101,1.57195331,114410.0,114400.0,0.103398]
[1754246330643,1.43835331,114410.0,114400.0,0.103398]
[1754246330852,1.57195331,114410.0,114400.0,0.103398]
[1754246331942,1.43835331,114410.0,114400.0,0.103398]
[1754246332153,1.57195331,114410.0,114400.0,0.103398]
[1754246332375,1.14868406,114410.0,114400.0,0.103398]
[1754246333322,1.14868406,114410.0,114400.0,0.032648]
[1754246333533,1.14868406,114410.0,114400.0,0.034658]
[1754246334736,1.14868406,114410.0,114400.0,0.02544]
[1754246335155,1.16236977,114410.0,114400.0,0.02544]
[1754246335482,1.16236977,114410.0,114400.0,0.02848]
[1754246336339,1.14868406,114410.0,114400.0,0.02848]
[1754246336734,1.07390442,114410.0,114400.0,0.02848]
[1754246339208,1.08759008,114410.0,114400.0,0.02848]
[1754246339638,0.35368566,114410.0,114400.0,0.02848]
[1754246339844,0.01368566,114410.0,114400.0,0.04592902]
[1754246340040,0.01368566,114410.0,114400.0,0.13098356]
[1754246340452,0.01368566,114410.0,114400.0,0.04592902]
[1754246340838,0.01368566,114410.0,114400.0,0.13456186]
[1754246341492,0.01368566,114410.0,114400.0,0.13256186]
[1754246342139,0.01368566,114410.0,114400.0,0.13656186]
[1754246343034,0.01368566,114410.0,114400.0,0.13956186]
[1754246343244,0.01368566,114410.0,114400.0,0.22839942]
[1754246345097,0.01368566,114410.0,114400.0,0.25468442]
[1754246345304,0.16941128,114440.0,114410.0,0.01744902]
[1754246345519,0.409583,114430.0,114420.0,0.08917]
[1754246345744,0.409583,114430.0,114420.0,0.09118]
[1754246345975,0.409583,114430.0,114420.0,0.15058619]
[1754246346732,0.409583,114430.0,114420.0,0.15063368]
[1754246346942,0.37581128,114440.0,114420.0,0.15063368]
[1754246347152,0.37581128,114440.0,114430.0,0.08917]
[1754246347363,0.37581128,114440.0,114430.0,0.22478]
[1754246347575,0.37581128,114440.0,114430.0,0.23915947]
[1754246348902,0.37681128,114440.0,114430.0,0.23915947]
[1754246349770,0.39049402,114440.0,114430.0,0.23915947]
[1754246350188,0.99079844,114440.0,114430.0,0.23915947]
[1754246350899,0.99280844,114440.0,114430.0,0.23915947]
[1754246351119,0.99180844,114440.0,114430.0,0.23915947]
[1754246351570,0.99180844,114440.0,114430.0,0.24115947]
[1754246352628,0.99180844,114440.0,114430.0,0.24315947]
[1754246353296,0.98979844,114440.0,114430.0,0.24315947]